Cogmind - Beta 16 @@@ ROGUE MODE // 2026.01.13 @ 06:32:32 Player: Peregrine Result: Defending 0bPrime! Performance ------------- Evolutions (8) 4000 Regions Visited (12) 2400 Robots Destroyed (301) 1505 Value Destroyed (16628) 16628 Prototype IDs (109) 2180 Alien Tech Used (0) 0 Bonus (18318) 18318 TOTAL SCORE: 45031 Bonus ------- High Alert Combat Kills 3782 Registered with UFD 300 Met Optimus in HQ 500 Met Optimus at Protoforge 1000 Executed Drillbomb Mission 10000 Win 3000 Friendly Fire -264 Cogmind --------- Core Integrity 71/1450 Matter 300/300 Energy 350/350 System Corruption 16% Temperature Cool (0) Movement Flying (35) Location 0bPrime Parts ------- > --- POWER (3) -------- Improved Quantum Reactor > --- PROPULSION (6) --- Xenon Bombardment Thruster Xenon Bombardment Thruster Impulse Thruster Array > --- UTILITY (11) ----- Experimental Optical Array Centrium Light Armor Plating > --- WEAPON (3) ------- Compact Linear Accelerator > --- INVENTORY (5) ---- (None) Peak State ------------ > --- POWER ------------ Light Quantum Reactor Improved Quantum Reactor Improved Quantum Reactor > --- PROPULSION ------- Biometal Leg Biometal Leg Biometal Leg Experimental VSS Leg Experimental VSS Leg Experimental VSS Leg > --- UTILITY ---------- Experimental Cooling System High-capacity Storage Unit Experimental Optical Array Experimental Core Analyzer Experimental Core Analyzer Experimental Kinecellerator Experimental Weapon Cycler SHELL Armor Experimental Remote Shield > --- WEAPON ----------- Concept XC Strikerail Concept XC Strikerail Concept XC Strikerail > --- INVENTORY -------- UFD Drillbomb UFD Drillbomb [Rating: 243] Favorites ----------- Power Quantum Reactor Engine Reinforced Deuterium Engine Power Core Light Fission Core Reactor Quantum Reactor Propulsion Flexi-carbon Leg Treads Overtuned Medium Treads Leg Flexi-carbon Leg Wheel Subdweller Monowheel Hover Unit Improved Airjet Flight Unit Xenon Bombardment Thruster Utility High-capacity Storage Unit Device Advanced Heat Sink Storage High-capacity Storage Unit Processor Enhanced Optical Array Hackware Hacking Suite Protection Advanced Powered Armor Weapon Concept XC Strikerail Energy Gun Overtuned Beamcaster Energy Cannon Enhanced Nova Cannon Ballistic Gun Concept XC Strikerail Ballistic Cannon Light Cannon Launcher Neutron Missile Launcher Special Weapon Plasma Cutter Slashing Weapon Ripper Piercing Weapon Heavy Pick Build | -11 -10 -10 -9 -6 -6 -6 -5 -4 -3 -2 -2 -2 ------- Run | Yrd Mat Sub Scr Fac Low Low Fac Fac Res Res Tes Frg Slots Evolved 16 | . . . . 8 . . 2 2 2 2 . . Power 2 | . . . . 1 . . . . . 1 . . Propulsion 4 | . . . . 2 . . 1 . 1 . . . Utility 9 | . . . . 5 . . 1 2 . 1 . . Weapon 1 | . . . . . . . . . 1 . . . Parts Attached 243 | . 4 11 13 60 6 1 22 11 33 5 23 54 Power 36 | . . 1 2 10 2 . 3 4 4 1 3 6 Engine 10 | . . 1 2 5 1 . . 1 . . . . Core 6 | . . . . 5 1 . . . . . . . Reactor 20 | . . . . . . . 3 3 4 1 3 6 Propulsion 69 | . . 5 6 16 2 . 7 2 9 . 4 18 Treads 11 | . . . 2 3 . . 1 1 4 . . . Leg 38 | . . . 2 6 2 . 6 1 5 . 4 12 Wheel 13 | . . 5 2 6 . . . . . . . . Hover 1 | . . . . 1 . . . . . . . . Flight 6 | . . . . . . . . . . . . 6 Utility 87 | . 1 2 3 22 2 1 8 1 13 2 10 22 Device 42 | . . 1 3 9 1 1 6 1 7 1 2 10 Storage 6 | . . 1 . . . . . . . 1 3 1 Processor 24 | . . . . 10 . . 1 . 2 . 2 9 Hackware 1 | . . . . . . . 1 . . . . . Protection 14 | . 1 . . 3 1 . . . 4 . 3 2 Artifact . | . . . . . . . . . . . . . Weapon 51 | . 3 3 2 12 . . 4 4 7 2 6 8 Energy Gun 17 | . 2 . 1 3 . . 1 2 4 1 2 1 Energy Cannon 10 | . . . . 2 . . 1 1 2 . 2 2 Ballistic Gun 13 | . . 1 1 6 . . 1 . . . . 4 Ballistic Cannon 5 | . 1 . . . . . 1 . . 1 1 1 Launcher 3 | . . . . . . . . 1 1 . 1 . Special Weapon 1 | . . 1 . . . . . . . . . . Impact Weapon . | . . . . . . . . . . . . . Slashing Weapon 1 | . . 1 . . . . . . . . . . Piercing Weapon 1 | . . . . 1 . . . . . . . . Special Melee Weapon . | . . . . . . . . . . . . . Unidentified Prototypes 25 | . . . . 3 . . 1 1 2 2 5 11 Parts Lost 82 | . . 3 . 21 . 2 12 6 10 . 2 26 Power 12 | . . . . 5 . . 1 1 1 . 1 3 Propulsion 30 | . . 2 . 8 . . 6 3 3 . . 8 Utility 23 | . . 1 . 5 . 2 2 1 4 . 1 7 Weapon 17 | . . . . 3 . . 3 1 2 . . 8 Highest Loss Streak 6 | . . 1 . 6 . 1 5 3 4 . 1 5 To Critical Strikes 6 | . . . . . . . 3 . 1 . . 2 Average Backups 15 | 6 5 7 16 17 20 18 18 18 18 19 21 9 Power 1 | 1 1 1 . 1 1 1 1 2 1 . 1 . Propulsion 1 | 4 2 1 1 1 2 2 . 1 . . 1 . Utility 6 | . . . 5 7 9 7 8 7 6 8 9 4 Weapon 6 | 1 1 3 7 6 7 7 7 7 9 8 8 3 Tool/Special . | . . . . . . . . . . . . . Unused Backups 33 | . . 6 8 9 . . 1 1 1 1 2 4 Power 6 | . . 2 1 1 . . . . . . . 2 Propulsion 5 | . . 2 2 . . . . . . . 1 . Utility 13 | . . 2 . 6 . . 1 1 . 1 . 2 Weapon 9 | . . . 5 2 . . . . 1 . 1 . Tool/Special . | . . . . . . . . . . . . . Average Slot Usage (%) 89 | . 90 96 96 86 92 89 93 83 88 92 89 85 Engine 5 | . 14 14 13 6 6 6 2 . 1 . . . Core 1 | . . . . 4 . . . . . . . . Reactor 4 | . . . . . . . 6 9 7 13 9 11 Treads 4 | . . . 10 7 . . . 1 7 . . . Leg 16 | . 28 6 10 10 26 26 27 19 14 21 24 22 Wheel 2 | . . 19 7 2 . . . . . . . . Device 16 | . . 3 13 14 13 19 24 20 20 21 20 19 Storage 6 | . 14 14 14 6 6 6 5 5 4 5 5 4 Processor 10 | . . . . 20 22 15 6 10 9 13 10 9 Protection 2 | . 5 9 . . 3 1 . . 4 4 3 3 Energy Gun 4 | . 13 9 4 3 . . . 3 10 7 3 . Energy Cannon 3 | . . . . 3 6 6 5 3 2 4 6 3 Ballistic Gun 4 | . 3 5 11 4 6 6 1 1 . . . 7 Ballistic Cannon 1 | . 11 10 . . . . 2 . . . 2 . Slashing Weapon 1 | . . 2 9 . . . . . . . . . Peak Build Rating 243 | 6 8 16 33 77 74 70 94 98 142 154 180 243 Average Rating 96 | 6 6 10 23 65 68 67 84 85 115 145 162 194 On Entrance 66 | 6 6 8 16 30 70 68 65 78 77 131 154 159 Avg Prop Armor Cover (%) 9 | . . . 11 9 . . 16 5 8 . . . Naked Turns . | . . . . . . . . . . . . . Heaviest Build 209 | 12 18 53 58 82 74 73 89 91 151 139 209 176 Greatest Support 169 | 20 20 40 56 80 80 80 100 75 114 114 149 169 Greatest Overweight (x) 19 | . . 2 19 6 . . 4 1 10 1 1 1 Average Overweight (x) . | . . 1 1 1 . . . . . 1 . . Largest Inventory Capacity 25 | 8 8 20 20 20 20 20 20 20 20 20 25 20 Average Capacity 19 | 8 8 17 20 20 20 20 20 20 20 20 22 18 Most Carried 25 | 6 6 13 20 20 20 20 20 20 20 20 25 20 Average Carried 17 | 6 5 7 17 18 19 18 18 18 18 19 22 15 Final Capacity 20 | 8 8 20 20 20 20 20 20 20 20 20 20 5 Final Carried 20 | 6 6 12 20 20 20 18 19 18 20 20 20 . Scrap Suit Usage (%) 10 | . . . . 40 . . . . . . . . Parts Cannibalized 6 | . . . . 6 . . . . . . . . Class Distribution -------------------- 38% | Mutant 17% | Scavenger-Gunner 17% | Scavenger-Tank 13% | Scavenger-Mutant 10% | Scrapper Dominant Class ---------------- Mutant | -10/Materials Mutant | -10/Subcaves Mutant | -9/Scraptown Scrapper | -6/Factory Mutant | -6/Lower Caves Mutant | -6/Lower Caves Mutant | -5/Factory Mutant | -4/Factory Scavenger-Tank | -3/Research Scavenger-Gunner | -2/Research Scavenger-Gunner | -2/Testing Scavenger-Gunner | -2/Protoforge Resources | -11 -10 -10 -9 -6 -6 -6 -5 -4 -3 -2 -2 -2 ----------- Run | Yrd Mat Sub Scr Fac Low Low Fac Fac Res Res Tes Frg Matter Collected 8180 | 200 44 311 221 1681 192 30 1002 147 785 70 444 3053 Remotely . | . . . . . . . . . . . . . Salvage Created 16098 | . 55 156 204 2625 171 117 1574 669 2184 86 1323 6934 Parts 718 | . 6 14 5 124 3 3 56 25 95 . 54 333 Haulers Intercepted 5 | . . . . 2 . . 1 . 2 . . . Recyclers Shooed 10 | . . . . 3 . . 2 3 1 . 1 . Parts Field Recycled . | . . . . . . . . . . . . . Retrieved Matter . | . . . . . . . . . . . . . Parts Self-Destructed 22 | . . 12 4 . 3 3 . . . . . . Prevented . | . . . . . . . . . . . . . Parts Restored . | . . . . . . . . . . . . . Kills | -11 -10 -10 -9 -6 -6 -6 -5 -4 -3 -2 -2 -2 ------- Run | Yrd Mat Sub Scr Fac Low Low Fac Fac Res Res Tes Frg Combat Hostiles Destroyed 239 | . . 6 . 38 3 4 19 14 37 1 13 104 Guns 139 | . . 5 . 31 1 . 1 8 18 . . 75 Cannons 69 | . . 1 . 5 2 4 17 2 5 1 10 22 AOE 14 | . . . . . . . . 3 9 . . 2 Classes Destroyed 28 | . 2 2 . 11 . . . 1 1 . 1 10 Worker 18 | . 2 . . 5 . . 7 1 2 . 1 . Builder 6 | . . . . 2 . . . 1 3 . . . Tunneler 2 | . . . . . . . . 1 1 . . . Hauler 5 | . . . . 2 . . 1 . 2 . . . Recycler 10 | . . . . 4 . . 4 . . . 2 . Mechanic 2 | . . . . 1 . . . . . . . 1 Operator 2 | . . . . 1 . . . . . . . 1 Drone 19 | . . . . . . . . . . . . 19 Watcher 15 | . 1 . . 3 . . 3 1 3 . . 4 Swarmer 52 | . . 2 . 14 1 4 5 5 17 . . 4 Grunt 45 | . . . . 7 1 . 6 7 . . 7 17 Brawler 6 | . . . . 2 . . . 1 . . . 3 Duelist 1 | . . . . . . . . . . . . 1 Protector 2 | . . . . . . . . . . . . 2 Researcher 1 | . . . . . . . . . . . 1 . Sentry 13 | . . . . 3 1 . 2 . 1 1 . 5 Specialist 8 | . . . . . . . . . 2 . . 6 Hunter 17 | . . . . 3 . . 4 . 4 . 2 4 Programmer 37 | . . . . 8 . . 2 1 12 . 4 10 Behemoth 2 | . . . . 1 . . . . 1 . . . Hotshot 4 | . . . . . . . . . . . . 4 Decapitator 6 | . . . . . . . . . . . . 6 Overlord 1 | . . . . . . . . . . . . 1 Striker 6 | . . . . . . . . . . . . 6 Executioner 13 | . . . . . . . . . . . . 13 Alpha 7 2 | . . . . . . . . . . . . 2 Subdweller 4 | . . 4 . . . . . . . . . . Elite 1 | . . . . . . . . . . . . 1 Scrapoid 1 | . . . . . . . . . . . . 1 Best Kill Streak 19 | . 2 2 . 6 3 4 6 7 7 1 6 19 Combat Bots Only 18 | . . 2 . 4 3 4 5 5 5 1 6 18 Max Kills in Single Turn 7 | . 1 1 . 2 1 1 4 2 7 1 1 3 Gunslinging 1 | . . . . 1 . . . . . . . 1 Exploded 5 | . . . . . . . . 2 5 . . 2 Melee . | . . . . . . . . . . . . . Uniques/NPCs Destroyed . | . . . . . . . . . . . . . Combat | -11 -10 -10 -9 -6 -6 -6 -5 -4 -3 -2 -2 -2 -------- Run | Yrd Mat Sub Scr Fac Low Low Fac Fac Res Res Tes Frg Hostile Shots Fired 1369 | . . 47 . 319 36 43 153 71 191 3 100 406 Missed 389 | . . 9 . 95 14 12 39 19 54 2 29 116 Intercepted 2 | . . . . . . . . . . . . 2 Hits 980 | . . 38 . 224 22 31 114 52 137 1 71 290 Melee 15 | . . . . 1 . . . . . . . 14 Projectile 965 | . . 38 . 223 22 31 114 52 137 1 71 276 AOE 5 | . . . . 1 . . . 1 . . . 3 Critical Strikes 59 | . . 2 . 3 . . 6 5 6 . 5 32 Part Disruptions 4 | . . . . . . . . . 2 . . 2 Damage Taken 21109 | . 23 697 . 3916 221 480 1934 1021 2897 24 1503 8393 Core 2504 | . . 112 . 554 5 78 168 13 195 . 85 1294 Absorbed by Shields 928 | . . . . . . . . . 222 . . 706 Redirected to Shielding 74 | . . . . . 41 33 . . . . . . Ignored by Resistances 1030 | . . . . 4 . . 342 46 220 . 12 406 Regen/Repaired (Parts) 1991 | . . . . 33 . . 36 . . . 326 1596 Core Remaining (%) 64 | 100 . . 55 . . 25 83 98 85 . . 4 Volleys Fired 748 | . 7 46 . 184 23 14 95 33 76 5 38 227 Largest 3 | . 2 2 . 2 2 2 2 2 3 3 3 3 Hottest 360 | . 80 80 . 180 138 68 193 190 304 260 305 360 Shots Fired 1637 | . 14 78 . 312 32 28 187 54 222 9 106 595 Gun 999 | . 7 34 . 267 10 14 32 35 170 4 27 399 Cannon 623 | . 7 38 . 45 22 14 155 16 48 5 79 194 Launcher 9 | . . . . . . . . 3 4 . . 2 Special 6 | . . 6 . . . . . . . . . . Kinetic 749 | . 7 45 . 169 10 14 68 20 . . 12 404 Thermal 820 | . 1 31 . 132 22 14 119 31 196 9 76 189 Explosive 9 | . . . . . . . . 3 4 . . 2 Electromagnetic 59 | . 6 2 . 11 . . . . 22 . 18 . Robot Hit Streak 74 | . 3 17 . 23 11 12 31 14 30 19 31 74 Robot Miss Streak 9 | . 3 3 . 9 1 2 2 2 2 . 2 2 Penetration Max 2 | . . . . 2 . . 1 . . . 2 2 Secondary Targets 25 | . . . . 2 . . . . 1 . . 22 Max Gunslinging Chain 1 | . . . . 1 . . . . 1 . . 1 Shots Hit Robots 1131 | . 6 34 7 204 12 16 119 38 160 9 68 458 Core Hits 571 | . 3 10 3 108 5 6 52 54 73 3 30 224 Critical Kills 47 | . . . . 3 1 . 1 1 12 . 3 26 Critical Parts Destroyed 43 | . . . . 2 1 2 . . 6 . . 32 Critical Strikes 124 | . 1 2 . 8 2 2 7 4 31 1 4 62 Burn 22 | . . 2 . 3 . . . 3 13 1 . . Meltdown 10 | . . . . 1 . . 1 . 2 . 3 3 Destroy 83 | . . . . 4 2 2 . 1 16 . . 58 Blast 9 | . 1 . . . . . 6 . . . 1 1 Melee Attacks 19 | . . 1 7 6 . . . 5 . . . . Impact . | . . . . . . . . . . . . . Slashing 8 | . . 1 7 . . . . . . . . . Piercing 11 | . . . . 6 . . . 5 . . . . Sneak Attacks . | . . . . . . . . . . . . . Combat Hostiles . | . . . . . . . . . . . . . Follow-up Attacks . | . . . . . . . . . . . . . Damage Inflicted 40954 | . 132 467 485 5891 232 337 3998 1707 5448 324 2350 19583 Guns 23600 | . 70 237 . 4588 38 49 498 810 3296 103 274 13637 Cannons 14287 | . 33 230 . 1125 194 288 3224 266 1203 221 2076 5427 Explosions 2464 | . 29 . . 172 . . 269 631 945 . . 418 Melee 485 | . . . 485 . . . . . . . . . Ramming 118 | . . . . 6 . . 7 . 4 . . 101 Kinetic 19500 | . 33 268 . 3250 38 49 1560 608 . . 156 13538 Thermal 17727 | . 41 199 . 2278 194 288 2162 468 4115 324 2132 5526 Explosive 2435 | . . . . 172 . . 269 631 945 . . 418 Electromagnetic 689 | . 58 . . 185 . . . . 384 . 62 . Impact . | . . . . . . . . . . . . . Slashing 485 | . . . 485 . . . . . . . . . Piercing . | . . . . . . . . . . . . . Highest Corruption 17 | . . . . 10 10 10 16 1 17 . 1 16 Average Corruption 9 | . . . . 6 10 10 11 1 10 . 1 11 Corruption Purged . | . . . . . . . . . . . . . Corruption Blocked . | . . . . . . . . . . . . . Effects 298 | . . . . 61 22 3 52 1 47 . 2 110 Message Errors 59 | . . . . 11 8 . 6 1 6 . . 27 Matter Fused 64 | . . . . 14 8 1 9 . 10 . . 22 Heat Flow Errors 32 | . . . . 7 1 1 7 . 4 . . 12 Energy Discharges 38 | . . . . 9 1 . 6 . 8 . . 14 Parts Rejected 6 | . . . . 2 . . . . 1 . 1 2 Parts Fused 5 | . . . . 1 1 . 1 . 1 . . 1 Data Loss (minor) 34 | . . . . 9 2 1 5 . 8 . . 9 Data Loss (major) 13 | . . . . 1 1 . 3 . 3 . . 5 Misfires 15 | . . . . 4 . . 6 . 3 . . 2 Alerts 7 | . . . . 1 . . 4 . 1 . 1 . Misdirections 5 | . . . . 1 . . 1 . 1 . . 2 Weapon Failures 20 | . . . . 1 . . 4 . 1 . . 14 Overload Shots 14 | . . . . 2 1 . 11 . . . . . Effects 1 | . . . . . 1 . . . . . . . Heat Surge 1 | . . . . . 1 . . . . . . . Overflow Damage 687 | . . . 87 95 10 8 200 . 105 . 12 170 Projectiles 393 | . . . . 40 10 8 149 . 54 . 12 120 Explosions 157 | . . . . 55 . . 51 . 51 . . . Melee 137 | . . . 87 . . . . . . . . 50 Knockbacks 22 | . . 4 . . . . 12 . 1 . 3 2 Impact 1 | . . . . . . . . . 1 . . . Kinetic 20 | . . 4 . . . . 11 . . . 3 2 Secondary 1 | . . . . . . . 1 . . . . . Self-Inflicted Damage 97 | . 23 . . . . . . . 74 . . . Shots 2 | . 1 . . . . . . . 1 . . . Rammed 3 | . . . . 2 . . . . 1 . . . Targets Rammed 7 | . . . . 2 . . 1 . 1 . . 3 Kicked 4 | . . . . . . . 1 . . . . 3 Crushed . | . . . . . . . . . . . . . Highest Temperature 468 | . 30 324 . 311 237 162 385 . 338 64 468 189 Average Temperature 112 | . 13 178 . 109 118 94 99 . 88 38 192 76 Received Heat Transfer 2832 | . . 623 . 908 57 . 171 254 . . 225 594 Effects 8 | . . . . 4 . . . . . . 4 . Energy Bleed 1 | . . . . . . . . . . . 1 . Interference 7 | . . . . 4 . . . . . . 3 . Siege Activations . | . . . . . . . . . . . . . Martial Activations . | . . . . . . . . . . . . . Shielding Activations . | . . . . . . . . . . . . . Robots Disrupted . | . . . . . . . . . . . . . Combat Hostiles . | . . . . . . . . . . . . . Robots Corrupted 3 | . . . . 1 . . . . . . . 2 Combat Hostiles 1 | . . . . 1 . . . . . . . . Parts Fried 6 | . 1 . . 4 . . . . 1 . . . Impact Corruptions 2 | . . . . . . . . . . . . 2 Robots Melted 15 | . . . . 1 . . 1 1 5 . 4 3 Combat Hostiles 14 | . . . . 1 . . 1 1 5 . 3 3 Parts Melted 85 | . . . . 16 1 . 4 4 42 1 7 10 Heat Transferred 24554 | . 87 740 . 3911 300 450 2830 1109 7638 459 1924 5106 Parts Sabotaged . | . . . . . . . . . . . . . Parts Stolen . | . . . . . . . . . . . . . Parts Stripped . | . . . . . . . . . . . . . Power Chain Reactions 3 | . 1 . . . . . . 2 . . . . Alert | -11 -10 -10 -9 -6 -6 -6 -5 -4 -3 -2 -2 -2 ------- Run | Yrd Mat Sub Scr Fac Low Low Fac Fac Res Res Tes Frg Maximum Alert Level 5 | . . . . 2 . . 1 1 2 1 1 5 Low Security (%) 42 | 100 100 . . 48 . . 65 83 26 . 46 17 Level 1 31 | . . . . 39 . . 34 16 49 100 53 2 Level 2 19 | . . . . 11 . . . . 23 . . 49 Level 3 1 | . . . . . . . . . . . . 6 Level 4 2 | . . . . . . . . . . . . 9 Level 5 3 | . . . . . . . . . . . . 14 High Security . | . . . . . . . . . . . . . Max Security . | . . . . . . . . . . . . . Peak Influence 2044 | . 12 . . 526 . . 387 289 666 369 298 2044 Initial 369 | . . . . . . . 118 183 126 369 190 139 Average 346 | . . . . 224 . . 176 165 297 354 207 747 Influence Increases 7607 | . 23 115 20 1392 60 105 859 444 1195 30 511 2853 Destroy 0b10 Robot/C 4300 | . . 40 . 760 60 80 380 280 740 20 280 1660 Destroy 0b10 Robot/NC 425 | . 15 . 20 90 . . 75 20 55 . 15 135 Destroy Leader 828 | . 2 . . 220 . 10 88 42 158 10 40 258 Successful Hack 229 | . 4 . . 118 . . 28 . . . 29 50 Disable Machine 525 | . . . . 75 . . 90 45 45 . 60 210 Destroy Structure 730 | . 2 . . 54 . . 108 42 152 . 72 300 Partial Spotted 15 | . . . . . . . . 15 . . . . Lose Combat Pursuer 555 | . . 75 . 75 . 15 90 . 45 . 15 240 Influence Decreases 5563 | . 23 115 20 871 416 82 672 578 780 347 601 1058 Entered New Map 1149 | . . . . . 194 32 70 192 115 287 149 110 Time Decay 3509 | . 23 105 20 566 222 30 482 326 565 60 422 688 Lost Part 800 | . . 10 . 210 . 20 120 60 100 . 20 260 Lost Ally 10 | . . . . . . . . . . . 10 . Purge Threat 95 | . . . . 95 . . . . . . . . Squads Dispatched 48 | . . . . 14 . . 7 3 9 . 3 12 Investigation 19 | . . . . 6 . . 4 2 1 . . 6 Extermination 19 | . . . . 7 . . 1 1 4 . 3 3 Reinforcement 9 | . . . . 1 . . 2 . 3 . . 3 Assault 1 | . . . . . . . . . 1 . . . Garrison . | . . . . . . . . . . . . . Intercept . | . . . . . . . . . . . . . Searches Triggered . | . . . . . . . . . . . . . Construction Impeded 1 | . . . . . . . 1 . . . . . Haulers Reinforced 1 | . . . . 1 . . . . . . . . Active Scanning Responses . | . . . . . . . . . . . . . Cargo Convoy Interrupts . | . . . . . . . . . . . . . Stealth | -11 -10 -10 -9 -6 -6 -6 -5 -4 -3 -2 -2 -2 --------- Run | Yrd Mat Sub Scr Fac Low Low Fac Fac Res Res Tes Frg Distress Signals 10 | . . . . 2 . . . . . 1 . 7 Communications Jammed . | . . . . . . . . . . . . . Distress Signals . | . . . . . . . . . . . . . Times Spotted 325 | . 2 12 . 54 3 5 34 16 51 1 16 131 Peak Tracking Total 13 | . 1 4 . 5 3 4 4 5 6 3 4 13 Tactical Retreats 21 | . . 1 . 4 . 1 5 . 2 . 1 7 Traps | -11 -10 -10 -9 -6 -6 -6 -5 -4 -3 -2 -2 -2 ------- Run | Yrd Mat Sub Scr Fac Low Low Fac Fac Res Res Tes Frg Traps Triggered 10 | . . 2 . 3 . . 1 . 1 . . 3 Indirectly . | . . . . . . . . . . . . . Trap Hack Attempts . | . . . . . . . . . . . . . Triggered . | . . . . . . . . . . . . . Disarmed 4 | . . . . 4 . . . . . . . . Reprogrammed . | . . . . . . . . . . . . . Reused . | . . . . . . . . . . . . . Traps Extracted . | . . . . . . . . . . . . . Installed . | . . . . . . . . . . . . . Triggered . | . . . . . . . . . . . . . Machines | -11 -10 -10 -9 -6 -6 -6 -5 -4 -3 -2 -2 -2 ---------- Run | Yrd Mat Sub Scr Fac Low Low Fac Fac Res Res Tes Frg Machines Disabled 37 | . . . . 5 . . 6 3 3 . 4 16 Max in Single Turn 4 | . . . . 1 . . 4 1 1 . 1 1 Garrison Access 4 | . . . . 3 . . 1 . . . . . Machines Repaired . | . . . . . . . . . . . . . Machines Dismantled . | . . . . . . . . . . . . . Machines Sabotaged . | . . . . . . . . . . . . . Overloaded Fab Kills . | . . . . . . . . . . . . . Hacking | -11 -10 -10 -9 -6 -6 -6 -5 -4 -3 -2 -2 -2 --------- Run | Yrd Mat Sub Scr Fac Low Low Fac Fac Res Res Tes Frg Machines Accessed 57 | . 3 . 3 23 . . 8 2 4 . 5 9 Terminals 22 | . 2 . . 10 . . 2 . 1 . 4 3 Fabricators 2 | . . . . 2 . . . . . . . . Repair Stations 3 | . . . . 1 . . 1 . 1 . . . Recycling Units 17 | . 1 . . 6 . . 4 2 1 . . 3 Scanalyzers 5 | . . . . 1 . . . . . . 1 3 Garrison Access 5 | . . . . 3 . . 1 . 1 . . . Total Hacks 149 | . 7 . 26 58 . . 22 2 6 . 8 20 Successful 84 | . 3 . 26 31 . . 12 2 2 . 4 4 Failed 65 | . 4 . . 27 . . 10 . 4 . 4 16 Catastrophic 15 | . . . . 5 . . 2 . 2 . 1 5 Database Lockouts . | . . . . . . . . . . . . . Manual 63 | . 4 . . 26 . . 14 2 2 . 3 12 Terminals 59 | . 6 . . 31 . . 8 . 2 . 6 6 Fabricators 3 | . . . . 3 . . . . . . . . Repair Stations 5 | . . . . 2 . . 2 . 1 . . . Recycling Units 29 | . 1 . . 11 . . 8 2 1 . . 6 Scanalyzers 16 | . . . . 6 . . . . . . 2 8 Garrison Access 11 | . . . . 5 . . 4 . 2 . . . Terminal Hacks 39 | . . . 26 10 . . 1 . 1 . 1 . Record 28 | . . . 26 1 . . . . 1 . . . Prototype ID Bank 1 | . . . . 1 . . . . . . . . Open Door 1 | . . . . . . . . . . . 1 . Open DSF 1 | . . . . 1 . . . . . . . . Alert Level 2 | . . . . 2 . . . . . . . . Unreport Threat 1 | . . . . 1 . . . . . . . . Locate Traps 2 | . . . . 2 . . . . . . . . Disarm Traps 1 | . . . . 1 . . . . . . . . Patrol Status 1 | . . . . 1 . . . . . . . . Zone Layout 1 | . . . . . . . 1 . . . . . Fabricator Hacks 1 | . . . . 1 . . . . . . . . Network Status 1 | . . . . 1 . . . . . . . . Repair Station Hacks 4 | . . . . 2 . . 2 . . . . . Scan Component 2 | . . . . 1 . . 1 . . . . . Repair 2 | . . . . 1 . . 1 . . . . . Recycling Unit Hacks 3 | . 1 . . 1 . . 1 . . . . . Report Inventory 2 | . 1 . . . . . 1 . . . . . Retrieve Components 1 | . . . . 1 . . . . . . . . Scanalyzer 6 | . . . . 3 . . . . . . 2 1 Insert Component 1 | . . . . 1 . . . . . . . . Analyze 2 | . . . . 2 . . . . . . . . Retrieve Study 3 | . . . . . . . . . . . 2 1 Garrison Access Hacks 5 | . . . . 3 . . 2 . . . . . Seal Access 4 | . . . . 3 . . 1 . . . . . Coupler Status 1 | . . . . . . . 1 . . . . . Unauthorized Hacks 26 | . 2 . . 11 . . 6 2 1 . 1 3 Terminals 13 | . 2 . . 6 . . 2 . . . 1 2 Assimilate 1 | . . . . . . . . . . . 1 . Botnet 12 | . 2 . . 6 . . 2 . . . . 2 Fabricators . | . . . . . . . . . . . . . Repair Stations . | . . . . . . . . . . . . . Recycling Units 13 | . . . . 5 . . 4 2 1 . . 1 Fedlink 13 | . . . . 5 . . 4 2 1 . . 1 Scanalyzers . | . . . . . . . . . . . . . Garrison Access . | . . . . . . . . . . . . . Data Cores Recovered . | . . . . . . . . . . . . . Used . | . . . . . . . . . . . . . Hacking Detections 37 | . 2 . . 18 . . 2 . 3 . 4 8 Full Trace Events 7 | . 1 . . 1 . . . . . . . 5 Feedback Events . | . . . . . . . . . . . . . Feedback Blocked . | . . . . . . . . . . . . . Robot Schematics Acquired 1 | . . . . . . . . . . . 1 . Robots Built . | . . . . . . . . . . . . . Authchips . | . . . . . . . . . . . . . Time . | . . . . . . . . . . . . . Total Robot Build Rating . | . . . . . . . . . . . . . Part Schematics Acquired 2 | . . . . 1 . . . . . . 1 . Parts Built . | . . . . . . . . . . . . . Authchips . | . . . . . . . . . . . . . Time . | . . . . . . . . . . . . . Total Part Build Rating . | . . . . . . . . . . . . . Part Studies Acquired 3 | . . . . . . . . . . . 2 1 Parts Repaired 1 | . . . . . . . 1 . . . . . Time 152 | . . . . 108 . . 44 . . . . . Parts Recycled . | . . . . . . . . . . . . . Recycled Matter . | . . . . . . . . . . . . . Retrieved Matter . | . . . . . . . . . . . . . Retrieved Components 10 | . . . . 10 . . . . . . . . Parts Scanalyzed 1 | . . . . 1 . . . . . . . . Part Schematics Acquired 1 | . . . . 1 . . . . . . . . Parts Damaged . | . . . . . . . . . . . . . Bothacking | -11 -10 -10 -9 -6 -6 -6 -5 -4 -3 -2 -2 -2 ------------ Run | Yrd Mat Sub Scr Fac Low Low Fac Fac Res Res Tes Frg Used RIF Installer . | . . . . . . . . . . . . . Robots Hacked . | . . . . . . . . . . . . . Non-combat . | . . . . . . . . . . . . . Combat . | . . . . . . . . . . . . . Robot Hacks Applied . | . . . . . . . . . . . . . Relay Couplers Released . | . . . . . . . . . . . . . Fabnet Peak Effective % . | . . . . . . . . . . . . . Robots Rewired . | . . . . . . . . . . . . . Allies Hacked . | . . . . . . . . . . . . . Hacks Repelled . | . . . . . . . . . . . . . Allies | -11 -10 -10 -9 -6 -6 -6 -5 -4 -3 -2 -2 -2 -------- Run | Yrd Mat Sub Scr Fac Low Low Fac Fac Res Res Tes Frg Total Allies 1 | . . . . . . . . . . . 1 . Largest Group 1 | . . . . . . . . . . . 1 . Highest-Rated Group 45 | . . . . . . . . . . . 45 . Highest-Rated Ally 45 | . . . . . . . . . . . 45 . Total Orders 10 | . . . . . . . . . . . 10 . STAY 2 | . . . . . . . . . . . 2 . ROAM 5 | . . . . . . . . . . . 5 . FOLLOW 3 | . . . . . . . . . . . 3 . Ally Attacks . | . . . . . . . . . . . . . Total Damage . | . . . . . . . . . . . . . Kills . | . . . . . . . . . . . . . Allies Corrupted . | . . . . . . . . . . . . . Allies Melted . | . . . . . . . . . . . . . Intel | -11 -10 -10 -9 -6 -6 -6 -5 -4 -3 -2 -2 -2 ------- Run | Yrd Mat Sub Scr Fac Low Low Fac Fac Res Res Tes Frg Active Infowar (turns) 13519 | . . 203 1472 3764 477 75 1248 723 1682 138 1020 2717 Optics 11692 | . . 203 34 3375 477 75 1248 723 1682 138 1020 2717 Terrain 2600 | . . . 369 1483 432 75 241 . . . . . Structural 1069 | . . . 1069 . . . . . . . . . ECM 181 | . . . . 181 . . . . . . . . Robot Analysis Total . | . . . . . . . . . . . . . Derelict Logs Recovered 4 | . . . 4 . . . . . . . . . Drone Launches . | . . . . . . . . . . . . . Drone Recoveries . | . . . . . . . . . . . . . Exploration | -11 -10 -10 -9 -6 -6 -6 -5 -4 -3 -2 -2 -2 ------------- Run | Yrd Mat Sub Scr Fac Low Low Fac Fac Res Res Tes Frg Turns Passed 14803 | 2 235 799 1869 3765 477 75 1248 723 1682 138 1020 2770 Spaces Moved 7842 | 2 110 486 1102 1685 229 25 612 309 720 56 475 2031 Core 4 | . . . 3 . . . . . 1 . . . Treads 1259 | . . . 399 652 . . . . 208 . . . Legs 5188 | 2 110 93 352 717 229 25 612 309 511 56 475 1697 Wheels 1057 | . . 393 348 316 . . . . . . . . Hover . | . . . . . . . . . . . . . Flight 334 | . . . . . . . . . . . . 334 Fastest Speed 29 | 120 120 107 110 105 120 120 120 120 108 186 102 29 Average Speed 139 | 120 120 121 158 169 120 120 137 189 170 186 153 89 Slowest Speed 1000 | 120 120 130 1000 400 120 120 400 190 550 186 188 195 Overloaded Moves . | . . . . . . . . . . . . . Propulsion Burnouts . | . . . . . . . . . . . . . Robots Hopped 3 | . . . . . . . . . . . . 3 Potential Cave-ins 10 | . . . . . . . 6 . . . . 4 Cave-ins Triggered 1 | . . . . . . . 1 . . . . . Exploration Rate (%) 28 | 2 24 28 68 47 43 12 17 13 24 2 45 51 Regions Visited 12 Branch Regions 6 Pre-discovered Areas 2 | . . . 1 1 . . . . . . . . Known Exits Taken 5 | . . . . 1 . . 1 1 1 1 . . Unknown Exits Taken 7 | 1 1 1 1 . 1 1 . . . . 1 . Scrap Searched 13 | . . 4 6 . 3 . . . . . . . Spaces Dug 83 | . . . . 15 12 . 19 6 1 . . 30 Terrain Destroyed 391 | . 2 . . 48 17 5 65 21 80 . 24 129 Melee 7 | . . . . 4 . . . 3 . . . . Projectile 263 | . . . . 35 16 5 44 8 11 . 24 120 AOE 119 | . 2 . . 8 . . 21 10 69 . . 9 Terrain Rammed . | . . . . . . . . . . . . . Walls Destroyed . | . . . . . . . . . . . . . Machines Disabled . | . . . . . . . . . . . . . Actions | -11 -10 -10 -9 -6 -6 -6 -5 -4 -3 -2 -2 -2 --------- Run | Yrd Mat Sub Scr Fac Low Low Fac Fac Res Res Tes Frg Total 10413 | 1 198 601 1221 2341 398 41 830 382 1011 84 687 2618 Wait 947 | . 72 39 52 274 138 1 54 2 106 5 91 113 Move 7824 | 1 109 485 1101 1684 228 24 610 308 719 55 474 2026 Hop 2 | . . . . . . . . . . . . 2 Pick Up 238 | . 3 11 22 69 . . 22 9 35 5 19 43 Fast Attach 56 | . . . 5 8 2 . 3 2 6 2 4 24 Attach 139 | . 1 3 3 34 1 1 16 7 25 2 11 35 Detach 20 | . . . 2 1 1 . 1 1 4 1 3 6 Swap 153 | . 4 13 7 37 3 1 16 8 16 3 22 23 Drop 214 | . 2 3 22 42 2 . 11 7 23 6 25 71 Fire 748 | . 7 46 . 184 23 14 95 33 76 5 38 227 Melee 19 | . . 1 7 6 . . . 5 . . . . Ram . | . . . . . . . . . . . . . Kick 4 | . . . . . . . 1 . . . . 3 Crush 3 | . . . . 2 . . . . 1 . . . Escape Stasis 6 | . . . . . . . 1 . . . . 5 Rewire . | . . . . . . . . . . . . . Trap . | . . . . . . . . . . . . . Miscellaneous 40 | . . . . . . . . . . . . 40 Route ------- -11/Scrapyard -10/Materials (discovered 2 exits: [*Min] / [*Sub]) -10/Subcaves -9/Scraptown (discovered 2 exits: *Fac x2) -6/Factory (discovered 4 exits: *Fac x2 / *Low x2) -6/Lower Caves -6/Lower Caves -5/Factory (discovered 2 exits: *Fac / Upp) -4/Factory -3/Research -2/Research -2/Testing (discovered 2 exits: [*Sec] / *Frg) -2/Protoforge 0bPrime History --------- Turn | Location | Event 1 | -11/Scrapyard | Discovered new exit (range 1) 3 | -11/Scrapyard | Entered Materials 13 | -10/Materials | Discovered new exit (range 16) 222 | -10/Materials | Discovered new exit (range 9) 238 | -10/Materials | Entered Subcaves 239 | -10/Subcaves | Approached by a straggling Scientist 316 | -10/Subcaves | Build established: Mutant 777 | -10/Subcaves | Disturbed a concealed Subdweller 1025 | -10/Subcaves | Scientist uncovered a shortcut to Scraptown 1037 | -10/Subcaves | Entered Scraptown 1241 | -9/Scraptown | Visited UFD Registry 1241 | -9/Scraptown | Registered with UFD as "Arccycle" 1300 | -9/Scraptown | Visited Junk Repository 1379 | -9/Scraptown | Scanned Subdweller tech in exchange for log data 1383 | -9/Scraptown | Learned 8 Factory zone layouts 1384 | -9/Scraptown | Learned location of 1 exit from Factory 1387 | -9/Scraptown | Learned location of Armory (-3) 1415 | -9/Scraptown | Discovered new exit (range 13) 1509 | -9/Scraptown | Guru changed UFD alias to "Longtorch" 1744 | -9/Scraptown | Visited Cave Peace 1835 | -9/Scraptown | Visited Science Testing Area 2021 | -9/Scraptown | Visited Derelict Rescue Squad 2055 | -9/Scraptown | Visited LU-1G1's Boring Crew 2088 | -9/Scraptown | Visited DA-N13 Charitable Foundation 2105 | -9/Scraptown | Found DCF Scrap (27 items) 2190 | -9/Scraptown | Visited Modified Component R&D 2439 | -9/Scraptown | Visited Curators Association 2492 | -9/Scraptown | Visited Junk Repository 2555 | -9/Scraptown | Visited Science Guys 2573 | -9/Scraptown | Visited Infowarlord's Domain 2588 | -9/Scraptown | Found Exp. Terrain Scanner 2613 | -9/Scraptown | Visited Scrapoid Pod Storage 2685 | -9/Scraptown | Found Scrap Suit 2806 | -9/Scraptown | Met Optimus 2806 | -9/Scraptown | Accepted into 0bPrime 2903 | -9/Scraptown | Discovered new exit (range 3) 2906 | -9/Scraptown | Entered Factory 2906 | -6/Factory | Evolved 8 slots: Power x1, Propulsion x2, Utility x5 2907 | -6/Factory | Identified exit to Lower Caves 2962 | -6/Factory | Discovered new exit (range 15) 3105 | -6/Factory | Identified exit to DSF 3224 | -6/Factory | Build established: Scrapper 3337 | -6/Factory | Loaded intel: 8 recycling unit locations 3501 | -6/Factory | Discovered new exit (range 27) 4393 | -6/Factory | Spotted B-75 Beast 4462 | -6/Factory | Destroyed B-75 Beast 4491 | -6/Factory | Lost 6 parts (2p1n1u2w) 4916 | -6/Factory | Learned location of Protoforge (-2) 5045 | -6/Factory | Lost 5 parts (1p3n1u) 5337 | -6/Factory | Build established: Scavenger-Mutant 5384 | -6/Factory | Core integrity fell below 50% 5497 | -6/Factory | Lost 3 parts (2p1n) 5911 | -6/Factory | Build established: Mutant 5938 | -6/Factory | System corruption reached 10% 6294 | -6/Factory | Build established: Scavenger-Mutant 6554 | -6/Factory | Discovered exit to Lower Caves (range 15) 6671 | -6/Factory | Entered Lower Caves 6674 | -6/Lower Caves | Build established: Mutant 7050 | -6/Lower Caves | Attracted the attention of an 0b10 checkpoint 7130 | -6/Lower Caves | Discovered new exit (range 16) 7148 | -6/Lower Caves | Entered another Lower Caves area 7213 | -6/Lower Caves | Discovered new exit (range 8) 7223 | -6/Lower Caves | Entered Factory 7223 | -5/Factory | Evolved 2 slots: Propulsion x1, Utility x1 7224 | -5/Factory | Identified exit to Upper Caves 7270 | -5/Factory | Loaded intel: 8 recycling unit locations 7346 | -5/Factory | Crushed by falling debris 7347 | -5/Factory | System corruption reached 10% 8068 | -5/Factory | Repaired Fusion Reactor 8227 | -5/Factory | Lost 5 parts (3n1u1w) 8268 | -5/Factory | Discovered new exit (range 5) 8461 | -5/Factory | Identified exit to Factory 8471 | -5/Factory | Entered another Factory area 8471 | -4/Factory | Evolved 2 slots: Utility x2 8488 | -4/Factory | Loaded intel: 8 recycling unit locations 8989 | -4/Factory | Lost 3 parts (1p1n1w) 9116 | -4/Factory | Lost 3 parts (2n1u) 9127 | -4/Factory | Discovered new exit (range 9) 9188 | -4/Factory | Identified exit to Research 9194 | -4/Factory | Entered Research 9194 | -3/Research | Evolved 2 slots: Propulsion x1, Weapon x1 9294 | -3/Research | Loaded intel: 5 recycling unit locations 9341 | -3/Research | Spotted B-86 Titan 9362 | -3/Research | Destroyed B-86 Titan 9650 | -3/Research | Build established: Scavenger-Tank 9950 | -3/Research | Lost 3 parts (1n2u) 9958 | -3/Research | Found Adv. Powered Armor 9963 | -3/Research | Found Adv. Powered Armor 9967 | -3/Research | Found Adv. Powered Armor 9971 | -3/Research | Found Adv. Powered Armor 10011 | -3/Research | Lost 4 parts (2n1u1w) 10117 | -3/Research | System corruption reached 10% 10619 | -3/Research | Found Prototype Launcher 10620 | -3/Research | Identified Tactical Quantum Warhead 10694 | -3/Research | First assault squad dispatched 10796 | -3/Research | Discovered new exit (range 22) 10859 | -3/Research | Identified exit to Research 10876 | -3/Research | Entered another Research area 10876 | -2/Research | Evolved 2 slots: Power x1, Utility x1 10928 | -2/Research | Discovered new exit (range 19) 11012 | -2/Research | Identified exit to Testing 11014 | -2/Research | Entered Testing 11093 | -2/Testing | Build established: Scavenger-Gunner 11104 | -2/Testing | Found Prototype Protection 11105 | -2/Testing | Identified SHELL Armor 11108 | -2/Testing | Found Prototype Protection 11109 | -2/Testing | Identified Med. Regenerative Plating 11402 | -2/Testing | Found Prototype Launcher 11433 | -2/Testing | Identified Point Singularity Launcher 11471 | -2/Testing | Found Prototype Energy Gun 11485 | -2/Testing | Identified Hyp. EM Gauss Rifle 11578 | -2/Testing | Found Prototype Energy Gun 11578 | -2/Testing | Identified Tachyon Dispersion Ray 11960 | -2/Testing | Spotted Fortress 11975 | -2/Testing | Build established: Scavenger-Tank 12029 | -2/Testing | Discovered new exit (range 6) 12029 | -2/Testing | Discovered new exit (range 6) 12034 | -2/Testing | Entered Protoforge 12119 | -2/Protoforge | Superfortress began startup sequence 12196 | -2/Protoforge | Spotted Hotshot 12198 | -2/Protoforge | Spotted Hotshot 12199 | -2/Protoforge | Destroyed Hotshot 12223 | -2/Protoforge | Destroyed Hotshot 12484 | -2/Protoforge | Spotted Hotshot 12484 | -2/Protoforge | Spotted Hotshot 12491 | -2/Protoforge | Destroyed Hotshot 12501 | -2/Protoforge | Destroyed Hotshot 12537 | -2/Protoforge | Forge Plexus network access discovered 12566 | -2/Protoforge | Spotted Decapitator 12569 | -2/Protoforge | Destroyed Decapitator 12571 | -2/Protoforge | Spotted Decapitator 12573 | -2/Protoforge | Spotted Decapitator 12574 | -2/Protoforge | Spotted Decapitator 12574 | -2/Protoforge | Spotted Decapitator 12577 | -2/Protoforge | Destroyed Decapitator 12577 | -2/Protoforge | Destroyed Decapitator 12591 | -2/Protoforge | Destroyed Decapitator 12593 | -2/Protoforge | Destroyed Decapitator 12621 | -2/Protoforge | Destroyed 15 combat bots 12751 | -2/Protoforge | Spotted AP7-3 12751 | -2/Protoforge | Destroyed AP7-3 12757 | -2/Protoforge | Spotted AP7-3 12760 | -2/Protoforge | Found Cep. XC Strikerail 12772 | -2/Protoforge | System corruption reached 10% 12784 | -2/Protoforge | Destroyed AP7-3 12789 | -2/Protoforge | Found Exp. Target Analyzer 12812 | -2/Protoforge | Lost 3 parts (1n1u1w) 12823 | -2/Protoforge | Spotted EXE-6 12838 | -2/Protoforge | Spotted SKR-2 12841 | -2/Protoforge | Spotted SKR-2 12841 | -2/Protoforge | Spotted SKR-2 12845 | -2/Protoforge | Spotted EXE-6 12856 | -2/Protoforge | Destroyed EXE-6 12869 | -2/Protoforge | Destroyed EXE-6 12890 | -2/Protoforge | Found Cep. XC Strikerail 12893 | -2/Protoforge | Found Cep. XC Strikerail 12899 | -2/Protoforge | Lost 4 parts (1p1u2w) 13035 | -2/Protoforge | Spotted Overlord 13068 | -2/Protoforge | Core integrity fell below 50% 13090 | -2/Protoforge | Destroyed Overlord 13111 | -2/Protoforge | Found Prototype Device 13112 | -2/Protoforge | Identified Exp. Weapon Cycler 13117 | -2/Protoforge | Lost 5 parts (1p1n3u) 13126 | -2/Protoforge | Found Prototype Processor 13126 | -2/Protoforge | Identified Exp. Targeting Computer 13128 | -2/Protoforge | Found Exp. Remote Shield 13133 | -2/Protoforge | Found Prototype Protection 13133 | -2/Protoforge | Identified Centrium Heavy Armor Plating 13221 | -2/Protoforge | Spotted EXE-6 13221 | -2/Protoforge | Spotted EXE-6 13241 | -2/Protoforge | Destroyed EXE-6 13246 | -2/Protoforge | Destroyed EXE-6 13262 | -2/Protoforge | Found Prototype Processor 13264 | -2/Protoforge | Found Prototype Processor 13265 | -2/Protoforge | Identified Exp. Core Analyzer (x2) 13277 | -2/Protoforge | Found Exp. Core Analyzer 13280 | -2/Protoforge | Found Exp. Kinecellerator 13348 | -2/Protoforge | UFD initiated attack on Protoforge (Readiness: High) 13348 | -2/Protoforge | Loaded intel: 3 recycling unit locations 13384 | -2/Protoforge | Optimus greeted in Protoforge 13422 | -2/Protoforge | Found UFD Drillbomb 13509 | -2/Protoforge | Installed UFD Drillbomb at designated target 13509 | -2/Protoforge | UFD reported confirmed Drillbomb installation 13540 | -2/Protoforge | Build established: Scavenger-Gunner 13576 | -2/Protoforge | Spotted Striker 13578 | -2/Protoforge | Spotted Striker 13581 | -2/Protoforge | Destroyed Striker 13586 | -2/Protoforge | UFD reported confirmed Drillbomb installation 13592 | -2/Protoforge | Found UFD Drillbomb 13625 | -2/Protoforge | UFD reported confirmed Drillbomb installation 13678 | -2/Protoforge | Spotted Striker 13680 | -2/Protoforge | Spotted Executioner 13681 | -2/Protoforge | Destroyed Striker 13694 | -2/Protoforge | Destroyed Executioner 13712 | -2/Protoforge | Lost 4 allies 13777 | -2/Protoforge | Found UFD Drillbomb 13975 | -2/Protoforge | UFD reported confirmed Drillbomb installation 14027 | -2/Protoforge | Installed UFD Drillbomb at designated target 14027 | -2/Protoforge | UFD reported confirmed Drillbomb installation 14042 | -2/Protoforge | Discovered new exit (range 2) 14042 | -2/Protoforge | Spotted B-90 Cyclops 14042 | -2/Protoforge | Spotted Executioner 14053 | -2/Protoforge | Installed UFD Drillbomb at designated target 14053 | -2/Protoforge | UFD reported confirmed Drillbomb installation 14121 | -2/Protoforge | Spotted Executioner 14124 | -2/Protoforge | Destroyed Executioner 14141 | -2/Protoforge | Destroyed Executioner 14143 | -2/Protoforge | Spotted Executioner 14147 | -2/Protoforge | Spotted Executioner 14174 | -2/Protoforge | Destroyed Executioner 14178 | -2/Protoforge | Destroyed Executioner 14202 | -2/Protoforge | Destroyed 18 combat bots 14282 | -2/Protoforge | Spotted Striker 14285 | -2/Protoforge | Destroyed Striker 14307 | -2/Protoforge | UFD reported confirmed Drillbomb installation 14309 | -2/Protoforge | Found UFD Drillbomb 14311 | -2/Protoforge | Found UFD Drillbomb 14354 | -2/Protoforge | Spotted Decapitator 14354 | -2/Protoforge | Spotted Decapitator 14361 | -2/Protoforge | Spotted Decapitator 14361 | -2/Protoforge | Spotted Decapitator 14368 | -2/Protoforge | Destroyed Decapitator 14384 | -2/Protoforge | Spotted Striker 14384 | -2/Protoforge | Destroyed Striker 14399 | -2/Protoforge | Lost 4 allies 14406 | -2/Protoforge | Spotted Striker 14407 | -2/Protoforge | Spotted Executioner 14412 | -2/Protoforge | Destroyed Striker 14414 | -2/Protoforge | Spotted Executioner 14415 | -2/Protoforge | Destroyed Executioner 14419 | -2/Protoforge | Destroyed Executioner 14464 | -2/Protoforge | Spotted Striker 14466 | -2/Protoforge | Spotted Executioner 14468 | -2/Protoforge | Destroyed 15 combat bots 14470 | -2/Protoforge | Core integrity fell below 20% 14475 | -2/Protoforge | Destroyed Executioner 14522 | -2/Protoforge | Spotted Executioner 14525 | -2/Protoforge | Spotted Striker 14555 | -2/Protoforge | Destroyed Striker 14557 | -2/Protoforge | Destroyed Executioner 14586 | -2/Protoforge | UFD reported confirmed Drillbomb installation 14593 | -2/Protoforge | UFD reported confirmed Drillbomb installation 14606 | -2/Protoforge | Lost 3 parts (1n2w) 14663 | -2/Protoforge | Spotted Executioner 14701 | -2/Protoforge | Lost 3 allies 14704 | -2/Protoforge | Installed UFD Drillbomb at designated target 14704 | -2/Protoforge | UFD reported confirmed Drillbomb installation 14705 | -2/Protoforge | UFD began Drillbomb countdown 14712 | -2/Protoforge | Spotted Hotshot 14712 | -2/Protoforge | Spotted Hotshot 14712 | -2/Protoforge | Spotted Striker 14713 | -2/Protoforge | Spotted Striker 14713 | -2/Protoforge | Spotted Hotshot 14714 | -2/Protoforge | Spotted Hotshot 14716 | -2/Protoforge | Spotted Executioner 14725 | -2/Protoforge | Spotted Hotshot 14726 | -2/Protoforge | Spotted Hotshot 14726 | -2/Protoforge | Spotted Hotshot 14729 | -2/Protoforge | Spotted Striker 14729 | -2/Protoforge | Spotted Executioner 14805 | *** | Defending 0bPrime! Last Messages --------------- 14795_ 0bP_NET: LISTEN AND RECITE! 14796_ 0bP_NET: Dude, not now. 14797_ 0bP_NET: Oh c'mon, can't we all just count together? 14798_ 02F18-K cannibalizes Power Amplifier to repair Mak. Coolant Network. 14798_ 02F18-K cannibalizes Antimatter Reactor to repair Ovr. Antimatter Reactor. 14798_ 0bP_NET: Fine. T-7, in case you lost count already. 14799_ 02F18-K cannibalizes Imp. Remote Force Field to repair Mak. Coolant Network. 14799_ 0bP_NET: Before the zero cycle! 14800_ 0bP_NET: Dammit not like that... 14801_ 0bP_NET: Okay how about this, the iron fist is going to be less iron in T-4. 14802_ 0bP_NET: That's a little better. 14803_ 0bP_NET: PRAISE BE TO GREAT NUT! 14804_ 0bP_NET: Dammit, I said..., ugh, T-1 folks! Take cover! 14804_ Slug penetrates OF-J5O(E). [Achievement: Robotopia] [Achievement: By A Hair] Map ----- +----------------------------------------------------+ | """"""""""""""""""""""""""" " %[%%[! "" #????? | | """"""""""""""""""""""""""" % %%%!!= ##????? | | """"""""""""""""""""""""""%%"" =*%[/% "#?????? | | """"""""""""""""""""""""""%"""%%!%!%" #?????? | | """"""""""""""""""""""""""SS%"" =!="* #?????? | | """"""""""""""""""""""""" SS%= % % #?????? | | """"""""""""""""""""""" % [= " != !"" #?????? | | """""""""""""""""""""s s %|[" SS%%=%" #?????? | | """"""""""""""""""" % =[="= * SS !"""=!#?????? | | """""""""""""""""! % % ! "=%"% !%#?????? | | """"""""""""""" =! *[[! " "= % *#?????? | | % % """"""""" js"" E % %*"" *[ #?????? | | [ E" "" % ]]"" %%*s" #?????? | | %""""" " s j "% % !"" * ="""" #?????? | | = " s [=*!*= !% %"" ###???? | | """" """" "[! % =[[ " <"#???? | | """ """ E ""s""""" """" " % <<#???? | | " """" " " <&#???? | | " " %" """ " " """" <&#???? | | " % "% "" "" " "" "&#???? | | " """" " "" "" "" "&#???? | | """"" %" """ " s" " " ###???? | | " " " """" "" " #?????? | | % % " " #?????? | | """"""""" """ #?????? | | " "" """ @""" #?????? | | " % """""""""" " " = " """""""#?????? | | ##############################+++###########?????? | | ?????????????????????????#"" ""#???????????? | | ???????????????????????###" "###?????????? | | ???????????????????????#"" ""#?????????? | | ???????????????????????#"" ""#?????????? | | ???????????????????????#"" ""#?????????? | | ???????????????????????#"Y Y"#?????????? | | ???????????????????????#"" ""#?????????? | | ???????????????????????#"" ""#?????????? | | ???????????????????????#"" ""#?????????? | | ???????????????????????###" "###?????????? | | ?????????????????????????#"" ""#???????????? | | ?????????????????????????###"""Y"""###???????????? | | ???????????????????????????#"""""""#?????????????? | | ???????????????????????????#########?????????????? | | ?????????????????????????????????????????????????? | | ?????????????????????????????????????????????????? | | ?????????????????????????????????????????????????? | | ?????????????????????????????????????????????????? | | ?????????????????????????????????????????????????? | | ?????????????????????????????????????????????????? | | ?????????????????????????????????????????????????? | | ?????????????????????????????????????????????????? | +----------------------------------------------------+ Best States ------------- Heat Dissipation 208 Coolant Potential 100 Energy Generation 73 Energy Capacity 1540 Matter Stores 300 Matter Capacity 300 Sight Range 23 Terrain Scan Range 30 Terrain Scan Density 310 ECM Strength 2 Additional Mass Support 9 Base Temperature (-) 200 EM Shielding 4 Corruption Containment 12 Armor Coverage 1300 Resistance: KI 25 Resistance: TH 25 Resistance: EM 25 Weapon Shielding 66 Point Defense Rating 240 Weapon Cycling 30 Evasion (%) 64 Targeting Accuracy 34 Target Analysis 12 Core Analysis 12 Recoil Reduction 3 Matter Filtering 30 Energy Filtering 30 Kinecelleration 66 Offensive Hacking 10 Authchip Count 1 Item Schematics ----------------- Ovr. Coil Gun | -6/Factory | Scanalyzed Exp. Shock Absorption System | -2/Testing | Archive Robot Schematics ------------------ A-15 Conveyor | -2/Testing | Archive Fabricated ------------ Nothing Repaired ---------- Fusion Reactor | 70% | -5/Factory Studied --------- Myomer Leg | -2/Testing | Hacked Enh. Nova Cannon | -2/Testing | Hacked Biometal Leg | -2/Protoforge | Hacked Alien Tech Used ----------------- None Achievements -------------- By A Hair Hulk Smash Longdome?! Robotopia We Are One Well-fed Force Field Challenges ------------ None Game ------ Seed PotentialBoltCompactor Manual? 0 Play Time 02:47:51 Cumulative 156.1 hours Start 2026.01.11 @ 02:02:04 End 2026.01.13 @ 06:32:32 Sessions 29 Manual Loads 0 Difficulty Rogue Special Mode None Game No. 183 Rogue 168 Adventurer 15 Explorer 0 Win Type 9 Total 9 Types 3/0/3/1/0/0/1/0/0/1 Lore% 54 Gallery% 69 Achievement% 52 Wizard Run 0 Options --------- Layout 0 ASCII 0 Keyboard 0 Movement Mouse Keybinds 0 Fullscreen 2 Font 36/Smallcaps Map View 76x50 Zoom Use 0% Tactical HUD 1 Map Filters NONE Filters NONE Steam 1 RUN: 1e2df68c-3475-4456-bb9f-4a703636e124